[Event "North American U20 Girls 2019"]
[Site "Charlotte"]
[Date "2019.06.30"]
[Round "9.3"]
[White "Jie, Tianhui"]
[Black "Morris-Suzuki, Sophie"]
[Result "0-1"]
[ECO "E15"]
[WhiteElo "1920"]
[BlackElo "1945"]
[Annotator "NA"]
[PlyCount "134"]
[EventDate "2019.06.27"]
[EventType "swiss"]
[EventCountry "USA"]
[SourceTitle "playchess.com"]
[Source "ChessBase"]
[SourceQuality "1"]
[TimeControl "5400+30"]

1. d4 {[%emt 1:30:30]} Nf6 {[%emt 1:30:30]} 2. c4 {[%emt 0:00:30]} e6 {[%emt 0:00:30]} 3. Nf3 {[%emt 0:00:30]} b6 {[%emt 0:00:30]} 4. g3 {[%emt 0:00:30]} Ba6 {[%emt 0:00:30]} 5. b3 {[%emt 0:00:30]} c5 {[%emt 0:00:30]} 6. Bg2 {[%emt 0:00:30]} Bb7 {[%emt 0:00:30]} 7. O-O {[%emt 0:00:30]} cxd4 {[%emt 0:00:30]} 8. Nxd4 {[%emt 0:00:30]} Bxg2 {[%emt 0:00:30]} 9. Kxg2 {[%emt 0:00:30]} Qc8 {[%emt 0:00:30]} 10. Nb5 {[%emt 0:00:30]} Qc6+ {[%emt 0:00:30]} 11. f3 {[%emt 0:00:30]} a6 {[%emt 0:00:30]} 12. Nd4 {[%emt 0:00:30]} Qb7 {[%emt 0:00:30]} 13. e4 {[%emt 0:00:30]} d6 {[%emt 0:00:30]} 14. Nc3 {[%emt 0:00:30]} Nbd7 {[%emt 0:00:30]} 15. Qe2 {[%emt 0:00:30]} Be7 {[%emt 0:00:30]} 16. Rd1 {[%emt 0:00:30]} O-O {[%emt 0:00:30]} 17. Be3 {[%emt 0:00:30]} Rfe8 {[%emt 0:00:30]} 18. Rac1 {[%emt 0:00:30]} Bf8 {[%emt 0:00:30]} 19. Nc2 {[%emt 0:00:30]} Rad8 {[%emt 0:00:30]} 20. Rd2 {[%emt 0:00:30]} Rc8 {[%emt 0:00:30]} 21. Bd4 {[%emt 0:00:30]} b5 {[%emt 0:00:30]} 22. Bxf6 {[%emt 0:00:30]} Nxf6 {[%emt 0:00:30]} 23. Ne3 {[%emt 0:00:30]} b4 {[%emt 0:00:30]} 24. Na4 {[%emt 0:00:30]} d5 {[%emt 0:00:30]} 25. exd5 {[%emt 0:00:30]} exd5 {[%emt 0:00:30]} 26. Qf2 {[%emt 0:00:30]} dxc4 {[%emt 0:00:30]} 27. Rxc4 {[%emt 0:00:30]} Rxc4 {[%emt 0:00:30]} 28. Nxc4 {[%emt 0:00:30]} Qb5 {[%emt 0:00:30]} 29. Qd4 {[%emt 0:00:30]} h5 {[%emt 0:00:30]} 30. Kf2 {[%emt 0:00:30]} Qf5 {[%emt 0:00:30]} 31. Kg2 {[%emt 0:00:30]} Re1 {[%emt 0:00:30]} 32. Rf2 {[%emt 0:00:30]} Qb1 {[%emt 0:00:30]} 33. Rb2 {[%emt 0:00:30]} Qc1 {[%emt 0:00:30]} 34. Qf2 {[%emt 0:00:30]} h4 {[%emt 0:00:30]} 35. Rc2 {[%emt 0:00:30]} Rg1+ {[%emt 0:00:30]} 36. Qxg1 {[%emt 0:00:30]} h3+ {[%emt 0:00:30]} 37. Kh1 {[%emt 0:00:30]} Qxc2 {[%emt 0:00:30]} 38. Ncb2 {[%emt 0:00:30]} Ne4 {[%emt 0:00:30]} 39. Qf1 {[%emt 0:00:30]} Nd2 {[%emt 0:00:30]} 40. Qd1 {[%emt 0:00:30]} Qxd1+ {[%emt 0:00:30]} 41. Nxd1 {[%emt 0:00:30]} Nxf3 42. Nf2 {[%emt 0:00:30]} Ng5 {[%emt 0:01:00]} 43. Kg1 {[%emt 0:00:30]} Bd6 {[%emt 0:00:30]} 44. Kf1 {[%emt 0:00:30]} Kf8 {[%emt 0:00:30]} 45. Ke2 {[%emt 0:00:30]} Ke7 {[%emt 0:00:30]} 46. Nb2 {[%emt 0:00:30]} Ke6 {[%emt 0:00:30]} 47. Nbd3 {[%emt 0:00:30]} Kf5 {[%emt 0:00:30]} 48. Ne1 {[%emt 0:00:30]} Ne4 {[%emt 0:00:30]} 49. Nxh3 {[%emt 0:00:30]} Nc3+ {[%emt 0:00:30]} 50. Kd2 {[%emt 0:00:30]} Nxa2 {[%emt 0:00:30]} 51. Nf2 {[%emt 0:00:30]} Nc3 {[%emt 0:00:30]} 52. Kd3 {[%emt 0:00:30]} Bc5 {[%emt 0:00:30]} 53. Nh3 {[%emt 0:00:30]} Kg4 {[%emt 0:00:30]} 54. Nf4 {[%emt 0:00:30]} Bf2 {[%emt 0:00:30]} 55. Nc2 {[%emt 0:00:30]} g5 {[%emt 0:00:30]} 56. Nxb4 {[%emt 0:00:30]} gxf4 {[%emt 0:00:30]} 57. Kxc3 {[%emt 0:00:30]} Be1+ 58. Kc4 {[%emt 0:00:30]} Bxb4 {[%emt 0:01:00]} 59. gxf4 {[%emt 0:00:30]} a5 {[%emt 0:00:30]} 60. Kd5 {[%emt 0:00:30]} Kxf4 {[%emt 0:00:30]} 61. h4 {[%emt 0:00:30]} Kg4 {[%emt 0:00:30]} 62. Ke5 {[%emt 0:00:30]} Bc3+ {[%emt 0:00:30]} 63. Ke4 {[%emt 0:00:30]} f5+ {[%emt 0:00:30]} 64. Kd3 {[%emt 0:00:30]} Bb4 {[%emt 0:00:30]} 65. Ke3 {[%emt 0:00:30]} Bc5+ {[%emt 0:00:30]} 66. Kd3 {[%emt 0:00:30]} Kxh4 {[%emt 0:00:30]} 67. Kc4 {[%emt 0:00:30]} Bb4 {[%emt 0:00:30]} 0-1

[Event "North American U20 Girls 2019"]
[Site "Charlotte"]
[Date "2019.06.30"]
[Round "9.4"]
[White "Ehsani, Yassamin"]
[Black "Zeng, Sheena"]
[Result "1/2-1/2"]
[ECO "C00"]
[WhiteElo "1866"]
[BlackElo "1964"]
[Annotator "NA"]
[PlyCount "155"]
[EventDate "2019.06.27"]
[EventType "swiss"]
[EventCountry "USA"]
[SourceTitle "playchess.com"]
[Source "ChessBase"]
[SourceQuality "1"]
[TimeControl "5400+30"]

1. e4 {[%emt 1:30:30]} e6 {[%emt 1:30:30]} 2. d3 {[%emt 0:00:30]} d5 {[%emt 0:00:30]} 3. Nd2 {[%emt 0:00:30]} Nf6 {[%emt 0:00:30]} 4. g3 {[%emt 0:00:30]} c5 {[%emt 0:00:30]} 5. Bg2 {[%emt 0:00:30]} Nc6 {[%emt 0:00:30]} 6. Ngf3 {[%emt 0:00:30]} Be7 {[%emt 0:00:30]} 7. O-O {[%emt 0:00:30]} O-O {[%emt 0:00:30]} 8. e5 {[%emt 0:00:30]} Nd7 {[%emt 0:00:30]} 9. Re1 {[%emt 0:00:30]} b5 {[%emt 0:00:30]} 10. Nf1 {[%emt 0:00:30]} b4 {[%emt 0:00:30]} 11. Bf4 {[%emt 0:00:30]} a5 {[%emt 0:00:30]} 12. h4 {[%emt 0:00:30]} a4 {[%emt 0:00:30]} 13. a3 {[%emt 0:00:30]} bxa3 {[%emt 0:00:30]} 14. bxa3 {[%emt 0:00:30]} Rb8 {[%emt 0:00:30]} 15. Ne3 {[%emt 0:00:30]} Nd4 {[%emt 0:00:30]} 16. Ng4 {[%emt 0:00:30]} Rb2 {[%emt 0:00:30]} 17. Nxd4 {[%emt 0:00:30]} cxd4 {[%emt 0:00:30]} 18. Qc1 {[%emt 0:00:30]} Rb6 {[%emt 0:00:30]} 19. Bg5 {[%emt 0:00:30]} f6 {[%emt 0:00:30]} 20. exf6 {[%emt 0:00:30]} Nxf6 {[%emt 0:00:30]} 21. Ne5 {[%emt 0:00:30]} Qe8 {[%emt 0:00:30]} 22. Bh3 {[%emt 0:00:30]} h6 {[%emt 0:00:30]} 23. Bd2 {[%emt 0:00:30]} Nd7 {[%emt 0:00:30]} 24. Ng4 {[%emt 0:00:30]} Qg6 {[%emt 0:00:30]} 25. Bb4 {[%emt 0:00:30]} Bxb4 {[%emt 0:00:30]} 26. axb4 {[%emt 0:00:30]} Rxb4 {[%emt 0:00:30]} 27. Qd2 {[%emt 0:00:30]} Rb6 {[%emt 0:00:30]} 28. Rxa4 {[%emt 0:00:30]} e5 {[%emt 0:00:30]} 29. Ra7 {[%emt 0:00:30]} Qd6 {[%emt 0:00:30]} 30. Qe2 {[%emt 0:00:30]} Qb8 {[%emt 0:00:30]} 31. Ra5 {[%emt 0:00:30]} Rb5 {[%emt 0:00:30]} 32. Rxb5 {[%emt 0:00:30]} Qxb5 {[%emt 0:00:30]} 33. Bg2 {[%emt 0:00:30]} e4 {[%emt 0:00:30]} 34. dxe4 {[%emt 0:00:30]} Qxe2 {[%emt 0:00:30]} 35. Rxe2 {[%emt 0:00:30]} Nc5 {[%emt 0:00:30]} 36. Ne5 {[%emt 0:00:30]} dxe4 {[%emt 0:00:30]} 37. Bxe4 {[%emt 0:00:30]} Nxe4 {[%emt 0:00:30]} 38. Rxe4 {[%emt 0:00:30]} Bf5 {[%emt 0:00:30]} 39. Rxd4 {[%emt 0:00:30]} Bxc2 {[%emt 0:00:30]} 40. Rc4 {[%emt 0:00:30]} Bb3 {[%emt 0:00:30]} 41. Rc5 {[%emt 0:00:30]} Rd8 {[%emt 0:00:30]} 42. Kg2 {[%emt 0:00:30]} Kh7 {[%emt 0:00:30]} 43. Ng4 {[%emt 0:00:30]} Bd1 {[%emt 0:00:30]} 44. Ne3 {[%emt 0:00:30]} Bb3 {[%emt 0:00:30]} 45. g4 {[%emt 0:00:30]} Rf8 {[%emt 0:00:30]} 46. Kg3 {[%emt 0:00:30]} Be6 {[%emt 0:00:30]} 47. Re5 {[%emt 0:00:30]} Bb3 {[%emt 0:00:30]} 48. Rb5 {[%emt 0:00:30]} Be6 {[%emt 0:00:30]} 49. Rb6 {[%emt 0:00:30]} Rf6 {[%emt 0:00:30]} 50. f4 {[%emt 0:00:30]} Bc8 {[%emt 0:00:30]} 51. Rb3 {[%emt 0:00:30]} g6 {[%emt 0:00:30]} 52. Rc3 {[%emt 0:00:30]} Bd7 {[%emt 0:00:30]} 53. Rc7 {[%emt 0:00:30]} Rf7 {[%emt 0:00:30]} 54. f5 {[%emt 0:00:30]} gxf5 {[%emt 0:00:30]} 55. gxf5 {[%emt 0:00:30]} Kg7 {[%emt 0:00:30]} 56. Kf4 {[%emt 0:00:30]} Bb5 {[%emt 0:00:30]} 57. Rc5 {[%emt 0:00:30]} Bd3 {[%emt 0:00:30]} 58. Rd5 {[%emt 0:00:30]} Be2 {[%emt 0:00:30]} 59. Rd6 {[%emt 0:00:30]} Bh5 {[%emt 0:00:30]} 60. Nd5 {[%emt 0:00:30]} Ra7 {[%emt 0:00:30]} 61. Ke5 {[%emt 0:00:30]} Be8 {[%emt 0:00:30]} 62. Rb6 {[%emt 0:00:30]} Bf7 {[%emt 0:00:30]} 63. f6+ {[%emt 0:00:30]} Kh7 {[%emt 0:00:30]} 64. Nf4 {[%emt 0:00:30]} Rd7 {[%emt 0:00:30]} 65. Ne6 {[%emt 0:00:30]} Rd1 {[%emt 0:00:30]} 66. Rb7 {[%emt 0:00:30]} Re1+ {[%emt 0:00:30]} 67. Kf5 Rf1+ {[%emt 0:00:30]} 68. Nf4 Kg8 {[%emt 0:00:30]} 69. Rb8+ {[%emt 0:01:30]} Kh7 {[%emt 0:00:30]} 70. Rb4 {[%emt 0:00:30]} Bg6+ {[%emt 0:00:30]} 71. Ke6 {[%emt 0:00:30]} Re1+ {[%emt 0:00:30]} 72. Kd6 {[%emt 0:00:30]} Bf7 {[%emt 0:00:30]} 73. Rb7 {[%emt 0:00:30]} Kg8 {[%emt 0:00:30]} 74. Rb5 {[%emt 0:00:30]} Rd1+ {[%emt 0:00:30]} 75. Nd5 {[%emt 0:00:30]} Kh7 {[%emt 0:00:30]} 76. Ke5 {[%emt 0:00:30]} Re1+ {[%emt 0:00:30]} 77. Kd6 {[%emt 0:00:30]} Kg6 {[%emt 0:00:30]} 78. Rb2 {[%emt 0:00:30]} 1/2-1/2

[Event "North American U20 Girls 2019"]
[Site "Charlotte"]
[Date "2019.06.30"]
[Round "9.5"]
[White "Cui, Cynthia"]
[Black "Qiao, Cindy"]
[Result "1/2-1/2"]
[ECO "A18"]
[WhiteElo "1775"]
[BlackElo "1777"]
[Annotator "NA"]
[PlyCount "54"]
[EventDate "2019.06.27"]
[EventType "swiss"]
[EventCountry "USA"]
[SourceTitle "playchess.com"]
[Source "ChessBase"]
[SourceQuality "1"]
[TimeControl "5400+30"]

1. c4 e6 {[%emt 1:30:30]} 2. Nc3 {[%emt 1:31:00]} Nf6 {[%emt 0:00:30]} 3. e4 {[%emt 0:00:30]} d5 {[%emt 0:00:30]} 4. e5 {[%emt 0:00:30]} Ne4 {[%emt 0:00:30]} 5. cxd5 {[%emt 0:00:30]} Nxc3 {[%emt 0:00:30]} 6. bxc3 {[%emt 0:00:30]} Qxd5 {[%emt 0:00:30]} 7. Nf3 {[%emt 0:00:30]} c5 {[%emt 0:00:30]} 8. Be2 {[%emt 0:00:30]} Nc6 {[%emt 0:00:30]} 9. d4 {[%emt 0:00:30]} cxd4 {[%emt 0:00:30]} 10. cxd4 {[%emt 0:00:30]} Bb4+ {[%emt 0:00:30]} 11. Bd2 {[%emt 0:00:30]} Qa5 {[%emt 0:00:30]} 12. Bxb4 {[%emt 0:00:30]} Qxb4+ {[%emt 0:00:30]} 13. Qd2 {[%emt 0:00:30]} Qxd2+ {[%emt 0:00:30]} 14. Kxd2 {[%emt 0:00:30]} Ke7 {[%emt 0:00:30]} 15. Ke3 {[%emt 0:00:30]} Nb4 {[%emt 0:00:30]} 16. Rhc1 {[%emt 0:00:30]} Nd5+ {[%emt 0:00:30]} 17. Kd2 {[%emt 0:00:30]} Bd7 {[%emt 0:00:30]} 18. Rab1 {[%emt 0:00:30]} Rab8 {[%emt 0:00:30]} 19. Ng5 {[%emt 0:00:30]} Bc6 {[%emt 0:00:30]} 20. Bf3 {[%emt 0:00:30]} Rhd8 {[%emt 0:00:30]} 21. g3 {[%emt 0:00:30]} f6 {[%emt 0:00:30]} 22. exf6+ {[%emt 0:00:30]} gxf6 {[%emt 0:00:30]} 23. Ne4 {[%emt 0:00:30]} Rbc8 {[%emt 0:00:30]} 24. Ke1 {[%emt 0:00:30]} b6 {[%emt 0:00:30]} 25. Kf1 {[%emt 0:00:30]} Bb7 {[%emt 0:00:30]} 26. Kg2 {[%emt 0:00:30]} Rxc1 {[%emt 0:00:30]} 27. Rxc1 {[%emt 0:00:30]} Rc8 {[%emt 0:00:30]} 1/2-1/2